fUST/lending_fUST_20240918
["ID","MTS","AMOUNT","RATE_DAILY","PERIOD"]
[338470053,1726672232254,-160.420803,0.00018175,2]
[338470054,1726672232264,-160.420803,0.00018184,2]
[338470056,1726672232274,-160.420803,0.00018193,2]
[338470058,1726672232283,-160.420803,0.00018202,2]
[338470060,1726672232293,-160.420803,0.00018211,2]
[338470062,1726672232302,-160.420803,0.0001822,2]
[338470065,1726672232311,-160.420803,0.00018229,2]
[338470067,1726672232321,-160.420803,0.00018239,2]
[338470069,1726672232330,-160.420803,0.00018248,2]
[338470071,1726672232339,-416.8818214,0.000183,2]
[338470073,1726672232349,-153.0,0.000183,2]
[338470074,1726672232358,-164.718179,0.00018328,2]
[338470076,1726672232367,-153.0,0.00018356,2]
[338470078,1726672232376,-153.0,0.00018378,2]
[338470080,1726672232385,-153.0,0.00018378,2]
[338470082,1726672232395,-153.0,0.00018378,2]
[338470084,1726672232405,-306.4082058,0.00018378,2]
[338470085,1726672232414,-164.718179,0.00018512,2]
[338470086,1726672232425,-610.56298225,0.00018603,2]
[338470088,1726672232434,-300.0,0.00018762,2]
[338470090,1726672232445,-300.0,0.00018762,2]
[338470091,1726672232454,-153.0,0.00018765,2]
[338470093,1726672232464,-153.0,0.00018778,2]
[338470095,1726672232474,-1118.56566185,0.000189,2]
[338470098,1726672232495,-1119.22981319,0.000189,2]
[338470116,1726672240380,-1970.70202096,0.000189,2]
[338470117,1726672240390,-2000.0,0.00019,2]
[338470118,1726672240399,-476.3934316,0.00019058,2]
[338470119,1726672240409,-1000.0,0.00019058,2]
[338470120,1726672240419,-476.39343158,0.00019063,2]
[338470121,1726672240428,-476.39343158,0.00019068,2]
[338470122,1726672240438,-476.39343158,0.00019073,2]
[338470123,1726672240451,-476.39343158,0.00019078,2]
[338470124,1726672240461,-481.57391595,0.00019157,2]
[338470125,1726672240471,-161.95444203,0.00019157,2]
[338470126,1726672240481,-500.0,0.00019157,2]
[338470127,1726672240490,-500.0,0.00019157,2]
[338470128,1726672240500,-500.0,0.00019157,2]
[338470129,1726672240510,-500.0,0.00019157,2]
[338470130,1726672240519,-203.95887379,0.00019157,2]
[338470131,1726672240528,-190.04264217,0.00019157,2]
[338470132,1726672240538,-500.0,0.00019157,2]
[338470133,1726672240548,-302252.216701,0.00019158,3]
[338470134,1726672240558,-26830.2600174,0.00019158,3]
[338470135,1726672240569,-40245.390026,0.00019168,3]
[338470136,1726672240582,-155.0,0.0001917,2]
[338470137,1726672240591,-500.0,0.00019173,2]
[338470138,1726672240601,-500.0,0.00019173,2]
[338470139,1726672240610,-500.0,0.00019173,2]
[338470140,1726672240619,-500.0,0.00019173,2]
[338470141,1726672240630,-500.0,0.00019173,2]
[338470142,1726672240641,-500.0,0.00019173,2]
[338470143,1726672240651,-500.0,0.00019173,2]
[338470144,1726672240662,-500.0,0.00019173,2]
[338470145,1726672240673,-182.72848759,0.00019173,2]
[338470146,1726672240685,-238.67470162,0.00019177,2]
[338470147,1726672240695,-1441.30764285,0.00019177,2]
[338470148,1726672240711,-2425.42,0.00019177,2]
[338470149,1726672240721,-13769.08978249,0.00019178,5]
[338470150,1726672240731,-2500.3774477,0.00019178,5]
[338470151,1726672240742,-151.953278,0.00019178,2]
[338470152,1726672240753,-500.0,0.00019178,2]
[338470153,1726672240762,-500.0,0.00019178,2]
[338470154,1726672240772,-151.0,0.00019178,2]
[338470155,1726672240781,-151.0,0.00019178,2]
[338470156,1726672240791,-151.0,0.00019178,2]
[338470157,1726672240802,-151.0,0.00019178,2]
[338470158,1726672240811,-151.0,0.00019178,2]
[338470159,1726672240823,-151.0,0.00019178,2]
[338470160,1726672240834,-151.0,0.00019178,2]
[338470161,1726672240844,-151.0,0.00019178,2]
[338470162,1726672240853,-151.0,0.00019178,2]
[338470163,1726672240862,-154.178615,0.00019178,2]
[338470164,1726672240871,-398.38322423,0.00019178,2]
[338470165,1726672240881,-500.0,0.00019178,2]
[338470166,1726672240890,-193.265891,0.00019178,2]
[338470167,1726672240900,-193.265891,0.00019178,2]
[338470168,1726672240909,-193.265891,0.00019178,2]
[338470169,1726672240918,-193.265891,0.00019178,2]
[338470170,1726672240927,-193.265891,0.00019178,2]
[338470171,1726672240937,-193.265891,0.00019178,2]
[338470172,1726672240953,-193.265891,0.00019178,2]
[338470173,1726672240963,-193.265891,0.00019178,2]
[338470174,1726672240972,-193.265891,0.00019178,2]
[338470175,1726672240982,-193.265891,0.00019178,2]
[338470176,1726672240991,-193.265891,0.00019178,2]
[338470177,1726672241001,-193.265891,0.00019178,2]
[338470178,1726672241010,-193.265891,0.00019178,2]
[338470179,1726672241019,-193.265891,0.00019178,2]
[338470180,1726672241028,-193.265891,0.00019178,2]
[338470181,1726672241037,-193.265891,0.00019178,2]
[338470182,1726672241047,-193.265891,0.00019178,2]
[338470183,1726672241056,-193.265891,0.00019178,2]
[338470184,1726672241065,-151.0,0.00019178,2]
[338470185,1726672241074,-151.0,0.00019178,2]
[338470186,1726672241083,-500.0,0.00019178,2]
[338470187,1726672241093,-151.0,0.00019178,2]
[338470188,1726672241103,-151.0,0.00019178,2]
[338470189,1726672241112,-500.0,0.00019178,2]
[338470190,1726672241121,-500.0,0.00019178,2]
[338470191,1726672241130,-151.0,0.00019178,2]
[338470192,1726672241139,-151.0,0.00019178,2]
[338470193,1726672241149,-500.0,0.00019178,2]
[338470194,1726672241158,-500.0,0.00019178,2]
[338470195,1726672241167,-500.0,0.00019178,2]
[338470196,1726672241177,-500.0,0.00019178,2]
[338470197,1726672241186,-516.1,0.00019178,2]
[338470198,1726672241198,-500.0,0.00019178,2]
[338470199,1726672241208,-1254.96,0.00019178,2]
[338470200,1726672241217,-500.0,0.00019178,2]
[338470201,1726672241226,-862.56,0.00019178,2]
[338470202,1726672241236,-500.0,0.00019178,2]
[338470203,1726672241246,-600.32,0.00019178,2]
[338470204,1726672241256,-500.0,0.00019178,2]
[338470205,1726672241266,-500.0,0.00019178,2]
[338470206,1726672241277,-500.0,0.00019178,2]
[338470207,1726672241287,-151.0,0.00019178,2]
[338470208,1726672241297,-151.0,0.00019178,2]
[338470209,1726672241307,-151.0,0.00019178,2]
[338470210,1726672241317,-151.0,0.00019178,2]
[338470211,1726672241327,-500.0,0.00019178,2]
[338470212,1726672241338,-500.0,0.00019178,2]
[338470213,1726672241348,-500.0,0.00019178,2]
[338470214,1726672241358,-572.89102883,0.00019178,2]
[338470215,1726672241367,-957.77,0.00019178,2]
[338470216,1726672241380,-803.91,0.00019178,2]
[338470217,1726672241389,-500.0,0.00019178,2]
[338470218,1726672241400,-500.0,0.00019178,2]
[338470219,1726672241411,-500.0,0.00019178,2]
[338470220,1726672241422,-151.0,0.00019178,2]
[338470221,1726672241433,-151.0,0.00019178,2]
[338470222,1726672241444,-151.0,0.00019178,2]
[338470223,1726672241455,-151.0,0.00019178,2]
[338470224,1726672241464,-504.09,0.00019178,2]
[338470225,1726672241473,-500.0,0.00019178,2]
[338470226,1726672241483,-500.0,0.00019178,2]
[338470227,1726672241493,-564.76,0.00019178,2]
[338470228,1726672241503,-721.49,0.00019178,2]
[338470229,1726672241513,-896.22,0.00019178,2]
[338470230,1726672241524,-500.0,0.00019178,2]
[338470231,1726672241535,-229.30462457,0.00019178,2]
[338470232,1726672241546,-500.0,0.00019178,2]
[338470233,1726672241556,-559.26,0.00019178,2]
[338470234,1726672241565,-500.0,0.00019178,2]
[338470235,1726672241574,-504.17506452,0.00019178,2]
[338470236,1726672241584,-500.0,0.00019178,2]
[338470237,1726672241594,-634.12,0.00019178,2]
[338470238,1726672241603,-154.795383,0.00019178,2]
[338470239,1726672241613,-959.26,0.00019178,2]
[338470240,1726672241623,-500.0,0.00019178,2]
[338470241,1726672241633,-501.09,0.00019178,2]
[338470242,1726672241643,-500.0,0.00019178,2]
[338470243,1726672241654,-500.0,0.00019178,2]
[338470244,1726672241663,-562.82,0.00019178,2]
[338470245,1726672241675,-500.0,0.00019178,2]
[338470246,1726672241692,-500.0,0.00019178,2]
[338470247,1726672241706,-626.71542843,0.00019178,2]
[338470248,1726672241717,-500.0,0.00019178,2]
[338470249,1726672241727,-657.81,0.00019178,2]
[338470250,1726672241738,-1123.68,0.00019178,2]
[338470251,1726672241748,-958.51,0.00019178,2]
[338470252,1726672241759,-500.0,0.00019178,2]
[338470253,1726672241769,-151.0,0.00019178,2]
[338470254,1726672241779,-151.0,0.00019178,2]
[338470255,1726672241790,-299.137519,0.00019178,2]
[338470256,1726672241800,-500.0,0.00019178,2]
[338470257,1726672241810,-520.1332882,0.00019178,2]
[338470258,1726672241820,-780.66,0.00019178,2]
[338470259,1726672241830,-500.0,0.00019178,2]
[338470260,1726672241840,-500.0,0.00019178,2]
[338470261,1726672241852,-500.0,0.00019178,2]
[338470262,1726672241863,-500.0,0.00019178,2]
[338470263,1726672241873,-500.0,0.00019178,2]
[338470264,1726672241886,-500.0,0.00019178,2]
[338470265,1726672241896,-1478.4,0.00019178,2]
[338470266,1726672241905,-500.0,0.00019178,2]
[338470267,1726672241915,-2281.96,0.00019178,2]
[338470268,1726672241924,-720.68,0.00019178,2]
[338470269,1726672241933,-500.0,0.00019178,2]
[338470270,1726672241943,-1160.72,0.00019178,2]
[338470271,1726672241957,-500.0,0.00019178,2]
[338470272,1726672241966,-529.26445904,0.00019178,2]
[338470273,1726672241976,-2629.53,0.00019178,2]
[338470274,1726672241985,-170.277715,0.00019178,2]
[338470275,1726672241994,-170.277715,0.00019178,2]
[338470276,1726672242002,-170.277715,0.00019178,2]
[338470277,1726672242012,-170.277715,0.00019178,2]
[338470278,1726672242023,-170.277715,0.00019178,2]
[338470279,1726672242034,-170.277715,0.00019178,2]
[338470280,1726672242044,-500.0,0.00019178,2]
[338470281,1726672242056,-500.0,0.00019178,2]
[338470282,1726672242067,-500.05677308,0.00019178,2]
[338470283,1726672242079,-500.0,0.00019178,2]
[338470284,1726672242088,-170.277715,0.00019178,2]
[338470285,1726672242099,-170.277715,0.00019178,2]
[338470286,1726672242110,-500.0,0.00019178,2]
[338470287,1726672242122,-170.277715,0.00019178,2]
[338470288,1726672242133,-170.277715,0.00019178,2]
[338470289,1726672242143,-500.0,0.00019178,2]
[338470290,1726672242154,-500.0,0.00019178,2]
[338470291,1726672242166,-1127.57,0.00019178,2]
[338470292,1726672242179,-500.0,0.00019178,2]
[338470293,1726672242190,-154.506811,0.00019178,2]
[338470294,1726672242204,-500.0,0.00019178,2]
[338470295,1726672242215,-1181.86,0.00019178,2]
[338470296,1726672242224,-151.0,0.00019178,2]
[338470297,1726672242235,-151.0,0.00019178,2]
[338470298,1726672242247,-151.0,0.00019178,2]
[338470299,1726672242258,-151.0,0.00019178,2]
[338470300,1726672242268,-152.108278,0.00019178,2]
[338470301,1726672242279,-573.06,0.00019178,2]
[338470302,1726672242289,-500.0,0.00019178,2]
[338470303,1726672242299,-2173.97,0.00019178,2]
[338470304,1726672242310,-500.0,0.00019178,2]
[338470305,1726672242319,-500.0,0.00019178,2]
[338470306,1726672242330,-655.84,0.00019178,2]
[338470307,1726672242339,-277.20909129,0.00019178,2]
[338470308,1726672242351,-500.0,0.00019178,2]
[338470309,1726672242362,-537.26774126,0.00019178,2]
[338470310,1726672242373,-500.0,0.00019178,2]
[338470311,1726672242383,-500.0,0.00019178,2]
[338470312,1726672242395,-775.42,0.00019178,2]
[338470313,1726672242405,-500.0,0.00019178,2]
[338470314,1726672242415,-151.0,0.00019178,2]
[338470315,1726672242425,-151.0,0.00019178,2]
[338470316,1726672242434,-557.64,0.00019178,2]
[338470317,1726672242443,-151.0,0.00019178,2]
[338470318,1726672242455,-151.0,0.00019178,2]
[338470319,1726672242464,-151.0,0.00019178,2]
[338470320,1726672242473,-151.0,0.00019178,2]
[338470321,1726672242482,-546.17589861,0.00019178,2]
[338470322,1726672242491,-910.85,0.00019178,2]
[338470323,1726672242502,-500.0,0.00019178,2]
[338470324,1726672242512,-4477.14,0.00019178,2]
[338470325,1726672242524,-4477.14,0.00019178,2]
[338470326,1726672242534,-4477.14,0.00019178,2]
[338470327,1726672242544,-4477.14,0.00019178,2]
[338470328,1726672242554,-4477.14,0.00019178,2]
[338470329,1726672242565,-4477.14,0.00019178,2]
[338470330,1726672242576,-4477.14,0.00019178,2]
[338470331,1726672242586,-4477.14,0.00019178,2]
[338470332,1726672242598,-4477.14,0.00019178,2]
[338470333,1726672242609,-4477.14,0.00019178,2]
[338470334,1726672242618,-4477.14,0.00019178,2]
[338470335,1726672242629,-4477.14,0.00019178,2]
[338470336,1726672242640,-500.0,0.00019178,2]
[338470337,1726672242651,-4477.14,0.00019178,2]
[338470338,1726672242660,-386.426943,0.00019178,2]
[338470339,1726672242670,-4477.14,0.00019178,2]
[338470340,1726672242679,-386.426943,0.00019178,2]
[338470341,1726672242692,-4477.14,0.00019178,2]
[338470345,1726672242881,-4477.14,0.00019178,2]
[338470348,1726672242901,-386.426943,0.00019178,2]
[338470350,1726672242912,-4477.14,0.00019178,2]
[338470352,1726672242922,-386.426943,0.00019178,2]
[338470353,1726672242931,-517.71783702,0.00019178,2]
[338470354,1726672242943,-4477.14,0.00019178,2]
[338470356,1726672242954,-386.426943,0.00019178,2]
[338470357,1726672242972,-4477.14,0.00019178,2]
[338470359,1726672242983,-386.426943,0.00019178,2]
[338470360,1726672242994,-4477.14,0.00019178,2]
[338470361,1726672243003,-2123.17,0.00019178,2]
[338470362,1726672243015,-227.97090615,0.00019178,2]
[338470363,1726672243026,-4477.14,0.00019178,2]
[338470364,1726672243037,-4477.14,0.00019178,2]
[338470365,1726672243046,-691.79,0.00019178,2]
[338470366,1726672243056,-4477.14,0.00019178,2]
[338470367,1726672243065,-500.0,0.00019178,2]
[338470368,1726672243076,-4477.23703441,0.00019178,2]
[338470369,1726672243087,-500.0,0.00019178,2]
[338470371,1726672243098,-386.426943,0.00019178,2]
[338470373,1726672243109,-386.426943,0.00019178,2]
[338470374,1726672243119,-386.426943,0.00019178,2]
[338470375,1726672243129,-386.426943,0.00019178,2]
[338470376,1726672243138,-386.426943,0.00019178,2]
[338470377,1726672243147,-386.426943,0.00019178,2]
[338470378,1726672243157,-500.0,0.00019178,2]
[338470379,1726672243168,-500.0,0.00019178,2]
[338470380,1726672243178,-500.0,0.00019178,2]
[338470381,1726672243187,-500.0,0.00019178,2]
[338470382,1726672243197,-500.0,0.00019178,2]
[338470383,1726672243215,-536.45,0.00019178,2]
[338470384,1726672243225,-219.85106024,0.00019178,2]
[338470385,1726672243235,-500.0,0.00019178,2]
[338470386,1726672243244,-500.0,0.00019178,2]
[338470387,1726672243253,-1177.84,0.00019178,2]
[338470388,1726672243263,-500.0,0.00019178,2]
[338470389,1726672243272,-500.0,0.00019178,2]
[338470390,1726672243281,-500.0,0.00019178,2]
[338470391,1726672243290,-151.0,0.00019178,2]
[338470392,1726672243300,-500.0,0.00019178,2]
[338470393,1726672243310,-152.115204,0.00019178,2]
[338470394,1726672243319,-500.0,0.00019178,2]
[338470395,1726672243328,-512.28,0.00019178,2]
[338470396,1726672243338,-500.0,0.00019178,2]
[338470397,1726672243347,-500.0,0.00019178,2]
[338470398,1726672243356,-1082.32,0.00019178,2]
[338470400,1726672243365,-500.0,0.00019178,2]
[338470401,1726672243376,-873.1,0.00019178,2]
[338470402,1726672243387,-1153.87,0.00019178,2]
[338470403,1726672243398,-3902.89,0.00019178,2]
[338470404,1726672243408,-500.0,0.00019178,2]
[338470405,1726672243419,-500.0,0.00019178,2]
[338470406,1726672243430,-858.36,0.00019178,2]
[338470407,1726672243441,-500.0,0.00019178,2]
[338470408,1726672243452,-683.38,0.00019178,2]
[338470409,1726672243462,-524.12,0.00019178,2]
[338470410,1726672243473,-500.0,0.00019178,2]
[338470411,1726672243482,-1016.51,0.00019178,2]
[338470412,1726672243493,-500.0,0.00019178,2]
[338470413,1726672243503,-1260.45,0.00019178,2]
[338470414,1726672243514,-500.0,0.00019178,2]
[338470415,1726672243523,-500.0,0.00019178,2]
[338470416,1726672243533,-500.0,0.00019178,2]
[338470417,1726672243542,-500.0,0.00019178,2]
[338470418,1726672243551,-500.0,0.00019178,2]
[338470419,1726672243561,-500.0,0.00019178,2]
[338470420,1726672243570,-500.0,0.00019178,2]
[338470421,1726672243579,-500.0,0.00019178,2]
[338470422,1726672243589,-508.06,0.00019178,2]
[338470423,1726672243599,-500.0,0.00019178,2]
[338470424,1726672243608,-500.0,0.00019178,2]
[338470425,1726672243617,-500.0,0.00019178,2]
[338470426,1726672243627,-151.0,0.00019178,2]
[338470427,1726672243636,-825.31,0.00019178,2]
[338470428,1726672243645,-1085.51,0.00019178,2]
[338470429,1726672243654,-151.0,0.00019178,2]
[338470430,1726672243664,-151.0,0.00019178,2]
[338470431,1726672243674,-500.0,0.00019178,2]
[338470432,1726672243686,-521.55,0.00019178,2]
[338470434,1726672243697,-783.33,0.00019178,2]
[338470436,1726672243710,-500.0,0.00019178,2]
[338470438,1726672243722,-500.0,0.00019178,2]
[338470440,1726672243731,-392.440812,0.00019178,2]
[338470442,1726672243740,-392.440812,0.00019178,2]
[338470444,1726672243751,-500.0,0.00019178,2]
[338470446,1726672243761,-392.440812,0.00019178,2]
[338470449,1726672243770,-500.0,0.00019178,2]
[338470450,1726672243779,-392.440812,0.00019178,2]
[338470452,1726672243788,-392.440812,0.00019178,2]
[338470453,1726672243799,-392.440812,0.00019178,2]
[338470454,1726672243812,-500.0,0.00019178,2]
[338470455,1726672243823,-392.440812,0.00019178,2]
[338470456,1726672243835,-500.0,0.00019178,2]
[338470457,1726672243846,-392.440812,0.00019178,2]
[338470458,1726672243857,-392.440812,0.00019178,2]
[338470459,1726672243868,-392.440812,0.00019178,2]
[338470460,1726672243879,-980.94,0.00019178,2]
[338470461,1726672243890,-392.440812,0.00019178,2]
[338470462,1726672243901,-500.0,0.00019178,2]
[338470463,1726672243912,-392.440812,0.00019178,2]
[338470464,1726672243923,-500.0,0.00019178,2]
[338470465,1726672243935,-1073.87,0.00019178,2]
[338470466,1726672243947,-1062.75,0.00019178,2]
[338470467,1726672243959,-151.0,0.00019178,2]
[338470468,1726672243969,-569.48,0.00019178,2]
[338470469,1726672243979,-500.0,0.00019178,2]
[338470470,1726672243990,-878.38,0.00019178,2]
[338470471,1726672243999,-500.0,0.00019178,2]
[338470472,1726672244009,-2073.24,0.00019178,2]
[338470473,1726672244018,-500.0,0.00019178,2]
[338470474,1726672244027,-500.0,0.00019178,2]
[338470475,1726672244036,-500.0,0.00019178,2]
[338470476,1726672244045,-500.0,0.00019178,2]
[338470477,1726672244054,-500.0,0.00019178,2]
[338470478,1726672244063,-206.56055875,0.00019178,2]
[338470479,1726672244409,-159.11646774,0.00019177,2]
[338470480,1726672244420,-293.43944125,0.00019178,2]
[338470481,1726672244429,-546.67,0.00019178,2]
[338470482,1726672244439,-500.0,0.00019178,2]
[338470483,1726672244449,-500.0,0.00019178,2]
[338470484,1726672244461,-1171.28,0.00019178,2]
[338470485,1726672244470,-500.0,0.00019178,2]
[338470486,1726672244480,-500.0,0.00019178,2]
[338470487,1726672244489,-500.0,0.00019178,2]
[338470488,1726672244500,-612.46,0.00019178,2]
[338470489,1726672244511,-560.6,0.00019178,2]
[338470490,1726672244522,-500.0,0.00019178,2]
[338470491,1726672244535,-643.35,0.00019178,2]
[338470492,1726672244546,-513.79137478,0.00019178,2]
[338470493,1726672244555,-152.41490661,0.00019178,2]
[338470494,1726672244570,-347.58509339,0.00019178,2]
[338470495,1726672244582,-2144.44,0.00019178,2]
[338470496,1726672244592,-500.0,0.00019178,2]
[338470497,1726672244602,-500.0,0.00019178,2]
[338470498,1726672244614,-500.0,0.00019178,2]
[338470499,1726672244624,-151.0,0.00019178,2]
[338470500,1726672244633,-151.0,0.00019178,2]
[338470501,1726672244642,-151.0,0.00019178,2]
[338470502,1726672244652,-156.390996,0.00019178,2]
[338470503,1726672244661,-721.45,0.00019178,2]
[338470504,1726672244672,-216.48273253,0.00019178,2]
[338470568,1726672847431,841.73,0.0002051,120]
[338470569,1726672864063,420.86,0.0002051,120]
[338470570,1726672900857,420.86,0.0002051,120]
[338470573,1726673225043,170.0,0.00014,2]
[338470612,1726673432384,-180.170488,0.00018056,2]
[338470614,1726673432394,-113.39631205,0.0001837,2]
[338470616,1726673432405,-66.77417595,0.0001837,2]
[338470618,1726673432415,-728.92112252,0.000185,2]
[338470620,1726673432427,-963.62847848,0.000185,2]
[338470622,1726673432436,-180.170488,0.00018684,2]
[338470624,1726673432446,-300.0,0.00018899,2]
[338470626,1726673432456,-3000.0,0.000189,2]
[338470628,1726673432465,-106.94251949,0.000189,2]
[338470630,1726673432476,-636.53625817,0.000189,2]
[338470644,1726673438616,-800.88512723,0.000189,2]
[338470645,1726673438627,-1199.11487277,0.0001891,2]
[338470646,1726673438647,-1800.88512723,0.0001891,2]
[338470647,1726673438660,-3000.0,0.0001892,2]
[338470648,1726673438670,-3000.0,0.0001893,2]
[338470649,1726673438680,-3000.0,0.0001894,2]
[338470650,1726673438690,-3000.0,0.0001895,2]
[338470651,1726673438700,-3000.0,0.0001896,2]
[338470652,1726673438709,-3000.0,0.0001897,2]
[338470653,1726673438719,-3000.0,0.0001898,2]
[338470654,1726673438728,-3000.0,0.0001899,2]
[338470655,1726673438738,-180.170488,0.00018997,2]
[338470656,1726673438747,-153.0,0.00019,2]
[338470657,1726673438757,-2954.75535979,0.00019,2]
[338470658,1726673438770,-45.24464021,0.00019,2]
[338470659,1726673438783,-208.739459,0.00019,2]
[338470660,1726673438796,-153.0,0.00019,2]
[338470661,1726673438806,-153.0,0.00019,2]
[338470662,1726673438815,-306.0,0.00019,2]
[338470663,1726673438825,-1000.0,0.00019,2]
[338470664,1726673438834,-3000.0,0.0001901,2]
[338470665,1726673438844,-3000.0,0.0001902,2]
[338470666,1726673438853,-3000.0,0.0001903,2]
[338470667,1726673438863,-295.766988,0.00019039,2]
[338470668,1726673438872,-3000.0,0.0001904,2]
[338470669,1726673438882,-3000.0,0.0001905,2]
[338470670,1726673438891,-3000.0,0.0001906,2]
[338470671,1726673438901,-3000.0,0.0001907,2]
[338470672,1726673438910,-2750.53008062,0.00019078,2]
[338470673,1726673438919,-3000.0,0.0001908,2]
[338470674,1726673438929,-3000.0,0.0001909,2]
[338470675,1726673438939,-3000.0,0.000191,2]
[338470676,1726673438948,-6894.551005,0.000191,2]
[338470677,1726673438958,-4232.165447,0.0001911,2]
[338470678,1726673438967,-337.10174117,0.00019128,2]
[338470679,1726673438976,-500.0,0.00019128,2]
[338470680,1726673438986,-392.77121166,0.00019128,2]
[338470681,1726673438996,-500.0,0.00019128,2]
[338470682,1726673439006,-500.0,0.00019128,2]
[338470683,1726673439015,-9277.19673132,0.00019129,3]
[338470684,1726673439025,-12199.31352574,0.00019129,3]
[338470693,1726673440526,-194601.87740381,0.00019129,3]
[338470694,1726673440546,-1309.63695654,0.00019129,3]
[338470695,1726673440559,-3197.46297498,0.00019129,3]
[338470735,1726673443387,-5539.34882192,0.00019129,3]
[338470746,1726673446536,-2455.04531861,0.00019129,3]
[338470747,1726673446549,-1760.4214713,0.00019129,3]
[338470748,1726673446561,-2162.53910812,0.00019129,3]
[338470749,1726673446572,-2135.67124547,0.00019129,3]
[338470750,1726673446584,-598.9,0.00019129,3]
[338470751,1726673446596,-175223.02548551,0.00019129,3]
[338470752,1726673446606,-1546.19945522,0.00019158,3]
[338470753,1726673446618,-20100.5929179,0.00019168,3]
[338470754,1726673446630,-500.0,0.00019173,2]
[338470755,1726673446639,-500.0,0.00019173,2]
[338470756,1726673446649,-251.54355424,0.00019173,2]
[338470757,1726673446659,-175.98272928,0.00019173,2]
[338470758,1726673446669,-500.0,0.00019173,2]
[338470759,1726673446679,-610.24288954,0.00019173,2]
[338470760,1726673446689,-293.05307909,0.00019173,2]
[338470761,1726673446699,-500.0,0.00019173,2]
[338470762,1726673446710,-500.0,0.00019173,2]
[338470763,1726673446720,-500.0,0.00019173,2]
[338470764,1726673446729,-500.0,0.00019173,2]
[338470766,1726673446739,-500.0,0.00019173,2]
[338470767,1726673446749,-500.0,0.00019173,2]
[338470768,1726673446758,-500.0,0.00019173,2]
[338470769,1726673446768,-608.19149655,0.00019173,2]
[338470771,1726673446777,-500.0,0.00019173,2]
[338470772,1726673446787,-500.0,0.00019173,2]
[338470773,1726673446797,-500.0,0.00019173,2]
[338470774,1726673446806,-150.01,0.00019177,2]
[338470775,1726673446815,-4211.38483268,0.00019178,5]
[338470776,1726673446828,-477.29908137,0.00019178,5]
[338470799,1726674380149,155.0,0.00014012,2]
[338470800,1726674384861,155.0,0.00014012,2]
[338470801,1726674389544,155.0,0.00014012,2]
[338470802,1726674394504,155.0,0.00014012,2]
[338470803,1726674398960,155.0,0.00014012,2]
[338470804,1726674403997,155.0,0.00014012,2]
[338470805,1726674408900,155.0,0.00014012,2]
[338470806,1726674413853,155.0,0.00014012,2]
[338470807,1726674418501,155.0,0.00014012,2]
[338470808,1726674423069,238.64730562,0.00014012,2]
[338470855,1726674632647,-1269.41,0.000176,2]
[338470856,1726674632659,-2440.00593647,0.000176,2]
[338470866,1726674638517,-5783.53136065,0.000176,2]
[338470867,1726674638530,-122.05270288,0.000176,2]
[338470868,1726674638539,-3000.0,0.00017659,2]
[338470869,1726674638550,-500.0,0.00018145,2]
[338470870,1726674638560,-300.0,0.00018149,2]
[338470871,1726674638570,-843.03949819,0.00018514,2]
[338470872,1726674638579,-500.0,0.00018645,2]
[338470874,1726674638590,-153.0,0.000188,2]